[Event "*** Titled Tuesday Blitz"]
[Site "Chess.com"]
[Date "2020.05.05"]
[Round "3"]
[White "Bagirova"]
[Black "mc4chess"]
[Result "0-1"]
[WhiteElo "2191"]
[BlackElo "2448"]
[TimeControl "180+1"]
[EndTime "10:29:46 PDT"]
[Termination "mc4chess won by resignation"]

1. d4 {[%clk 0:03:00.9]} 1... Nf6 {[%clk 0:02:59.7]} 2. Nf3 {[%clk 0:03:00.4]}
2... e6 {[%clk 0:02:59.3]} 3. Bf4 {[%clk 0:03:00.7]} 3... b6 {[%clk 0:02:57.5]}
4. Nbd2 {[%clk 0:02:59.1]} 4... Bb7 {[%clk 0:02:57.7]} 5. e3 {[%clk 0:02:59]}
5... d6 {[%clk 0:02:56.4]} 6. Bd3 {[%clk 0:02:58.3]} 6... Nbd7 {[%clk
0:02:56.1]} 7. h3 {[%clk 0:02:57.4]} 7... g6 {[%clk 0:02:54.1]} 8. O-O {[%clk
0:02:56.7]} 8... Bg7 {[%clk 0:02:53.6]} 9. e4 {[%clk 0:02:57.2]} 9... O-O {[%clk
0:02:48]} 10. Re1 {[%clk 0:02:56.6]} 10... Re8 {[%clk 0:02:47.1]} 11. c3 {[%clk
0:02:53.7]} 11... e5 {[%clk 0:02:45.2]} 12. Be3 {[%clk 0:02:51]} 12... exd4
{[%clk 0:02:44.2]} 13. Bxd4 {[%clk 0:02:47.1]} 13... Ne5 {[%clk 0:02:39.8]} 14.
Bxe5 {[%clk 0:02:41.9]} 14... dxe5 {[%clk 0:02:40.7]} 15. Nc4 {[%clk 0:02:41.7]}
15... Nd7 {[%clk 0:02:40.5]} 16. Ne3 {[%clk 0:02:40.7]} 16... Nc5 {[%clk
0:02:40.2]} 17. Bc2 {[%clk 0:02:32.1]} 17... Bxe4 {[%clk 0:02:39.6]} 18. Bxe4
{[%clk 0:02:30.2]} 18... Nxe4 {[%clk 0:02:39.3]} 19. Nc4 {[%clk 0:02:30.4]}
19... f5 {[%clk 0:02:17.4]} 20. Ncxe5 {[%clk 0:02:21.7]} 20... Bxe5 {[%clk
0:02:13.7]} 21. Nxe5 {[%clk 0:02:22]} 21... Rxe5 {[%clk 0:02:11.9]} 22. f3
{[%clk 0:02:22.6]} 22... Qxd1 {[%clk 0:00:54.6]} 23. Raxd1 {[%clk 0:02:19.6]}
23... Nxc3 {[%clk 0:00:55.1]} 24. bxc3 {[%clk 0:02:14.3]} 24... Rxe1+ {[%clk
0:00:55]} 25. Rxe1 {[%clk 0:02:15.2]} 25... Kf7 {[%clk 0:00:55.7]} 26. Kf2
{[%clk 0:02:12.8]} 26... Rd8 {[%clk 0:00:55.9]} 27. Re2 {[%clk 0:02:07]} 27...
Rd3 {[%clk 0:00:55.2]} 28. Rc2 {[%clk 0:02:05.8]} 28... c5 {[%clk 0:00:45.4]}
29. c4 {[%clk 0:02:05.1]} 29... Ke6 {[%clk 0:00:35]} 30. Ke2 {[%clk 0:02:02.9]}
30... Ra3 {[%clk 0:00:35.4]} 31. f4 {[%clk 0:01:59.4]} 31... h6 {[%clk
0:00:31.2]} 32. Kf2 {[%clk 0:01:57.8]} 32... Kf6 {[%clk 0:00:28.9]} 33. g3
{[%clk 0:01:54.7]} 33... g5 {[%clk 0:00:29]} 34. Rd2 {[%clk 0:01:50]} 34... gxf4
{[%clk 0:00:28.1]} 35. gxf4 {[%clk 0:01:50.9]} 35... Rxh3 {[%clk 0:00:27.9]} 36.
Rd7 {[%clk 0:01:48.1]} 36... Rh2+ {[%clk 0:00:27.2]} 37. Kg3 {[%clk 0:01:47.3]}
37... Rxa2 {[%clk 0:00:28.1]} 38. Rd6+ {[%clk 0:01:45.6]} 38... Ke7 {[%clk
0:00:23.1]} 39. Rxh6 {[%clk 0:01:45.2]} 39... Rc2 {[%clk 0:00:23.4]} 40. Rh7+
{[%clk 0:01:45.1]} 40... Kf6 {[%clk 0:00:22.7]} 41. Rxa7 {[%clk 0:01:44.9]}
41... Rxc4 {[%clk 0:00:23.2]} 42. Rb7 {[%clk 0:01:44.8]} 42... Rb4 {[%clk
0:00:23.6]} 43. Rc7 {[%clk 0:01:42.8]} 43... Ke6 {[%clk 0:00:23]} 44. Rc6+
{[%clk 0:01:41.5]} 44... Kd5 {[%clk 0:00:23]} 45. Rf6 {[%clk 0:01:42]} 45...
Rb3+ {[%clk 0:00:18.8]} 46. Kh4 {[%clk 0:01:40.5]} 46... Ke4 {[%clk 0:00:19.7]}
47. Kg5 {[%clk 0:01:37.4]} 47... c4 {[%clk 0:00:08.9]} 48. Re6+ {[%clk
0:01:34.7]} 48... Kd5 {[%clk 0:00:05.5]} 49. Re5+ {[%clk 0:01:31.6]} 49... Kd6
{[%clk 0:00:06]} 50. Kxf5 {[%clk 0:01:31]} 50... c3 {[%clk 0:00:06.5]} 51. Re1
{[%clk 0:01:29.5]} 51... c2 {[%clk 0:00:06.7]} 52. Rc1 {[%clk 0:01:29.3]} 52...
Rc3 {[%clk 0:00:07]} 53. Ke4 {[%clk 0:01:28.7]} 53... b5 {[%clk 0:00:06.6]} 54.
Kd4 {[%clk 0:01:28.7]} 54... b4 {[%clk 0:00:06.7]} 55. f5 {[%clk 0:01:25.6]}
55... Ke7 {[%clk 0:00:06]} 56. Ke4 {[%clk 0:01:10.1]} 56... Kf6 {[%clk
0:00:05.8]} 57. Kd4 {[%clk 0:01:10.5]} 57... Kxf5 {[%clk 0:00:05.4]} 58. Rf1+
{[%clk 0:01:11.1]} 58... Kg4 {[%clk 0:00:05.1]} 59. Rg1+ {[%clk 0:01:11.2]}
59... Kf3 {[%clk 0:00:05.3]} 60. Rc1 {[%clk 0:01:11.7]} 60... Ke2 {[%clk
0:00:05.7]} 61. Ra1 {[%clk 0:01:08.7]} 61... c1=Q {[%clk 0:00:06.6]} 62. Rxc1
{[%clk 0:01:09]} 62... Rxc1 {[%clk 0:00:07.3]} 63. Kd5 {[%clk 0:01:09.8]} 63...
b3 {[%clk 0:00:07.5]} 0-1

[Event "*** Titled Tuesday Blitz"]
[Site "Chess.com"]
[Date "2020.05.05"]
[Round "3"]
[White "bolence16"]
[Black "allvim"]
[Result "0-1"]
[WhiteElo "2139"]
[BlackElo "2341"]
[TimeControl "180+1"]
[EndTime "10:29:46 PDT"]
[Termination "allvim won by resignation"]

1. e4 {[%clk 0:03:00.9]} 1... c5 {[%clk 0:02:58]} 2. Nf3 {[%clk 0:03:01.1]} 2...
d6 {[%clk 0:02:58]} 3. b4 {[%clk 0:03:00.8]} 3... cxb4 {[%clk 0:02:57.5]} 4. d4
{[%clk 0:03:01.1]} 4... Nf6 {[%clk 0:02:52.3]} 5. Bd3 {[%clk 0:03:01.4]} 5... e6
{[%clk 0:02:51.5]} 6. O-O {[%clk 0:03:01.4]} 6... Be7 {[%clk 0:02:51.9]} 7. a3
{[%clk 0:03:01.7]} 7... bxa3 {[%clk 0:02:48.1]} 8. Nxa3 {[%clk 0:03:01.7]} 8...
O-O {[%clk 0:02:48.1]} 9. h3 {[%clk 0:03:01.6]} 9... Nc6 {[%clk 0:02:45.8]} 10.
Qe2 {[%clk 0:02:56.7]} 10... e5 {[%clk 0:02:43.9]} 11. d5 {[%clk 0:02:49.2]}
11... Nb8 {[%clk 0:01:47.6]} 12. Be3 {[%clk 0:02:46.6]} 12... Nbd7 {[%clk
0:01:34.5]} 13. c4 {[%clk 0:02:46.4]} 13... b6 {[%clk 0:01:29.6]} 14. Nb5 {[%clk
0:02:44.2]} 14... a6 {[%clk 0:01:24.7]} 15. Rfb1 {[%clk 0:02:36.5]} 15... Nc5
{[%clk 0:01:19.7]} 16. Bxc5 {[%clk 0:02:26.8]} 16... bxc5 {[%clk 0:01:19.9]} 17.
Nc3 {[%clk 0:02:22.8]} 17... Nh5 {[%clk 0:01:11]} 18. Qb2 {[%clk 0:02:11.5]}
18... Nf4 {[%clk 0:01:09.6]} 19. Bf1 {[%clk 0:02:11.1]} 19... f5 {[%clk
0:00:57.7]} 20. Qb6 {[%clk 0:01:55.2]} 20... Qe8 {[%clk 0:00:56.8]} 21. Qc7
{[%clk 0:01:37.5]} 21... fxe4 {[%clk 0:00:46.8]} 22. Nxe4 {[%clk 0:01:36]} 22...
Bf5 {[%clk 0:00:47.5]} 23. Nfd2 {[%clk 0:01:19]} 23... Rc8 {[%clk 0:00:39.1]}
24. Qa5 {[%clk 0:00:53.5]} 24... Qg6 {[%clk 0:00:38.5]} 25. Ng3 {[%clk
0:00:42.8]} 25... Bxb1 {[%clk 0:00:34.6]} 26. Rxb1 {[%clk 0:00:42.6]} 26... Bh4
{[%clk 0:00:26.8]} 27. Kh2 {[%clk 0:00:31.2]} 27... Nd3 {[%clk 0:00:24.3]} 28.
Bxd3 {[%clk 0:00:24.7]} 28... Qxd3 {[%clk 0:00:25]} 29. Rb3 {[%clk 0:00:24.6]}
29... Bxg3+ {[%clk 0:00:18.6]} 30. fxg3 {[%clk 0:00:22.4]} 30... Qe2 {[%clk
0:00:18.8]} 31. Qxa6 {[%clk 0:00:15]} 31... Rcd8 {[%clk 0:00:16.5]} 32. Nf3
{[%clk 0:00:11.2]} 32... e4 {[%clk 0:00:14]} 33. Nh4 {[%clk 0:00:08.7]} 33... e3
{[%clk 0:00:10.3]} 34. Qa3 {[%clk 0:00:08.1]} 34... Rde8 {[%clk 0:00:08.5]} 35.
Qc1 {[%clk 0:00:07.1]} 35... Qf2 {[%clk 0:00:08.1]} 36. Kh1 {[%clk 0:00:03.9]}
36... e2 {[%clk 0:00:08.2]} 37. Nf3 {[%clk 0:00:02.4]} 37... Qf1+ {[%clk
0:00:07.8]} 38. Qxf1 {[%clk 0:00:01.6]} 38... exf1=Q+ {[%clk 0:00:08.7]} 39. Ng1
{[%clk 0:00:02.4]} 39... Re2 {[%clk 0:00:07.8]} 0-1

[Event "*** Titled Tuesday Blitz"]
[Site "Chess.com"]
[Date "2020.05.05"]
[Round "3"]
[White "hansen"]
[Black "Doraemon7"]
[Result "1-0"]
[WhiteElo "2954"]
[BlackElo "2651"]
[TimeControl "180+1"]
[EndTime "10:29:47 PDT"]
[Termination "hansen won by resignation"]

1. Nf3 {[%clk 0:03:00.8]} 1... d5 {[%clk 0:02:59.8]} 2. g3 {[%clk 0:03:01.2]}
2... g6 {[%clk 0:02:55.9]} 3. Bg2 {[%clk 0:03:01.3]} 3... Bg7 {[%clk 0:02:55.4]}
4. O-O {[%clk 0:03:00.6]} 4... e5 {[%clk 0:02:55.4]} 5. d3 {[%clk 0:02:59.4]}
5... Ne7 {[%clk 0:02:55]} 6. Nbd2 {[%clk 0:02:59.4]} 6... O-O {[%clk 0:02:54.9]}
7. e4 {[%clk 0:02:59.9]} 7... Nbc6 {[%clk 0:02:54]} 8. exd5 {[%clk 0:02:58.8]}
8... Nxd5 {[%clk 0:02:54.9]} 9. c3 {[%clk 0:02:58.3]} 9... Re8 {[%clk
0:02:43.7]} 10. Re1 {[%clk 0:02:57.8]} 10... h6 {[%clk 0:02:08.5]} 11. Nc4
{[%clk 0:02:56.1]} 11... Nb6 {[%clk 0:01:59.9]} 12. Ne3 {[%clk 0:01:20]} 12...
Be6 {[%clk 0:01:46.2]} 13. a4 {[%clk 0:01:13.7]} 13... a5 {[%clk 0:01:40]} 14.
Qc2 {[%clk 0:00:58.2]} 14... Qd7 {[%clk 0:01:36.8]} 15. Nd2 {[%clk 0:00:52]}
15... Rad8 {[%clk 0:01:34.6]} 16. Ne4 {[%clk 0:00:52.2]} 16... Qe7 {[%clk
0:01:06]} 17. b3 {[%clk 0:00:48.7]} 17... f5 {[%clk 0:01:01.5]} 18. Ba3 {[%clk
0:00:49.3]} 18... Qf7 {[%clk 0:01:01.7]} 19. Nc5 {[%clk 0:00:49.9]} 19... Bc8
{[%clk 0:00:54.6]} 20. Rad1 {[%clk 0:00:39.6]} 20... Kh7 {[%clk 0:00:53.5]} 21.
b4 {[%clk 0:00:34.3]} 21... axb4 {[%clk 0:00:49.4]} 22. Bxb4 {[%clk 0:00:34.5]}
22... Nxb4 {[%clk 0:00:44]} 23. cxb4 {[%clk 0:00:34.5]} 23... c6 {[%clk
0:00:36.9]} 24. a5 {[%clk 0:00:27.7]} 24... Nd5 {[%clk 0:00:27.5]} 25. Qb3
{[%clk 0:00:27.8]} 25... Re7 {[%clk 0:00:20.7]} 26. Nc4 {[%clk 0:00:22.3]} 26...
Qe8 {[%clk 0:00:14.4]} 27. h4 {[%clk 0:00:18.5]} 27... Kh8 {[%clk 0:00:11.6]}
28. Re2 {[%clk 0:00:18]} 28... Kh7 {[%clk 0:00:12]} 29. Rde1 {[%clk 0:00:18.3]}
29... e4 {[%clk 0:00:09.8]} 30. dxe4 {[%clk 0:00:16.6]} 30... Nc3 {[%clk
0:00:09.4]} 31. Re3 {[%clk 0:00:15.3]} 31... Nxe4 {[%clk 0:00:03.9]} 32. Nxe4
{[%clk 0:00:15.2]} 32... fxe4 {[%clk 0:00:04.1]} 33. Bxe4 {[%clk 0:00:15.5]}
33... Be6 {[%clk 0:00:03.2]} 34. h5 {[%clk 0:00:14.3]} 34... Kh8 {[%clk
0:00:01.7]} 35. Bxg6 {[%clk 0:00:14.3]} 35... Qd7 {[%clk 0:00:02.2]} 36. Qc2
{[%clk 0:00:10]} 36... Rf8 {[%clk 0:00:02.2]} 37. Ne5 {[%clk 0:00:08.4]} 37...
Qc7 {[%clk 0:00:02.3]} 38. Qc5 {[%clk 0:00:07.8]} 38... Bd5 {[%clk 0:00:02.2]}
39. Bc2 {[%clk 0:00:03.9]} 39... Re6 {[%clk 0:00:02.5]} 40. Ng6+ {[%clk
0:00:04.1]} 40... Rxg6 {[%clk 0:00:03.1]} 41. Bxg6 {[%clk 0:00:04.2]} 41... Bf6
{[%clk 0:00:03]} 42. Re8 {[%clk 0:00:04.2]} 42... Qg7 {[%clk 0:00:03.3]} 43.
Rxf8+ {[%clk 0:00:04.5]} 1-0

[Event "*** Titled Tuesday Blitz"]
[Site "Chess.com"]
[Date "2020.05.05"]
[Round "3"]
[White "MaxVavulin"]
[Black "Corpescador"]
[Result "0-1"]
[WhiteElo "2583"]
[BlackElo "2403"]
[TimeControl "180+1"]
[EndTime "10:29:47 PDT"]
[Termination "Corpescador won on time"]

1. e4 {[%clk 0:03:00.9]} 1... c5 {[%clk 0:02:59.8]} 2. Nf3 {[%clk 0:02:59.9]}
2... d6 {[%clk 0:02:59.8]} 3. d4 {[%clk 0:02:59.5]} 3... cxd4 {[%clk 0:03:00.7]}
4. Nxd4 {[%clk 0:02:59.8]} 4... Nf6 {[%clk 0:03:01]} 5. Nc3 {[%clk 0:03:00.3]}
5... a6 {[%clk 0:03:01.2]} 6. Qf3 {[%clk 0:02:57.2]} 6... g6 {[%clk 0:02:50.1]}
7. h3 {[%clk 0:02:56.9]} 7... h5 {[%clk 0:02:46.9]} 8. Be3 {[%clk 0:02:57.5]}
8... Nbd7 {[%clk 0:02:42.4]} 9. O-O-O {[%clk 0:02:55.2]} 9... Bg7 {[%clk
0:02:32.5]} 10. Kb1 {[%clk 0:02:48.4]} 10... Qc7 {[%clk 0:02:30.1]} 11. Rg1
{[%clk 0:02:43.2]} 11... Ne5 {[%clk 0:02:15.3]} 12. Qe2 {[%clk 0:02:42.2]} 12...
b5 {[%clk 0:02:15.2]} 13. f4 {[%clk 0:02:34.6]} 13... Nc4 {[%clk 0:02:14.7]} 14.
Bc1 {[%clk 0:02:34.9]} 14... e5 {[%clk 0:02:03.8]} 15. Ndxb5 {[%clk 0:02:24.8]}
15... axb5 {[%clk 0:01:51.6]} 16. Nxb5 {[%clk 0:02:24.5]} 16... Qa5 {[%clk
0:01:21.7]} 17. Qxc4 {[%clk 0:02:17.5]} 17... O-O {[%clk 0:01:19.6]} 18. Rxd6
{[%clk 0:01:40.4]} 18... exf4 {[%clk 0:00:45.7]} 19. e5 {[%clk 0:01:17.9]} 19...
Ne4 {[%clk 0:00:27.9]} 20. Rxg6 {[%clk 0:01:05.1]} 20... Qe1 {[%clk 0:00:16]}
21. Rxg7+ {[%clk 0:00:36.4]} 21... Kxg7 {[%clk 0:00:16.9]} 22. Qe2 {[%clk
0:00:36.6]} 22... Qa5 {[%clk 0:00:15]} 23. a3 {[%clk 0:00:29.2]} 23... Bf5
{[%clk 0:00:15]} 24. Qxh5 {[%clk 0:00:18.3]} 24... Bg6 {[%clk 0:00:14.2]} 25.
Qh4 {[%clk 0:00:09.4]} 25... Rfb8 {[%clk 0:00:10.8]} 26. Qxf4 {[%clk 0:00:06.6]}
26... Rxb5 {[%clk 0:00:09.8]} 27. Bxb5 {[%clk 0:00:06.6]} 27... Qxb5 {[%clk
0:00:10.7]} 28. Ka1 {[%clk 0:00:06.1]} 28... Qd5 {[%clk 0:00:09.3]} 29. Rf1
{[%clk 0:00:05]} 29... Qd4 {[%clk 0:00:08.6]} 30. Kb1 {[%clk 0:00:03.2]} 30...
Qc4 {[%clk 0:00:07.3]} 31. Re1 {[%clk 0:00:02.2]} 31... Kg8 {[%clk 0:00:05]} 32.
g4 {[%clk 0:00:01.7]} 32... Rc8 {[%clk 0:00:05]} 33. Qh2 {[%clk 0:00:01.1]}
33... Nc5 {[%clk 0:00:04.3]} 34. Re2 {[%clk 0:00:01.2]} 34... Nb3 {[%clk
0:00:04.3]} 35. Bg5 {[%clk 0:00:01.1]} 35... Nd4 {[%clk 0:00:04]} 36. Rd2 {[%clk
0:00:01.5]} 36... Nxc2 {[%clk 0:00:04.1]} 0-1

[Event "*** Titled Tuesday Blitz"]
[Site "Chess.com"]
[Date "2020.05.05"]
[Round "3"]
[White "SahajGrover"]
[Black "turayev_shahruh17"]
[Result "0-1"]
[WhiteElo "2718"]
[BlackElo "2543"]
[TimeControl "180+1"]
[EndTime "10:29:48 PDT"]
[Termination "turayev_shahruh17 won on time"]

1. e4 {[%clk 0:03:00.9]} 1... e6 {[%clk 0:02:56.8]} 2. d4 {[%clk 0:03:00.3]}
2... d5 {[%clk 0:02:57.3]} 3. Nc3 {[%clk 0:03:00.7]} 3... Bb4 {[%clk 0:02:56.7]}
4. e5 {[%clk 0:02:59.7]} 4... Ne7 {[%clk 0:02:56.3]} 5. Bd2 {[%clk 0:02:56.7]}
5... b6 {[%clk 0:02:55.4]} 6. Qg4 {[%clk 0:02:54.6]} 6... O-O {[%clk 0:02:50.7]}
7. a3 {[%clk 0:02:36.4]} 7... Bxc3 {[%clk 0:02:49.8]} 8. Bxc3 {[%clk 0:02:37.3]}
8... c5 {[%clk 0:02:49.4]} 9. Nf3 {[%clk 0:02:31.8]} 9... Ba6 {[%clk 0:02:25.6]}
10. Bxa6 {[%clk 0:02:19.6]} 10... Nxa6 {[%clk 0:02:26.2]} 11. h4 {[%clk
0:02:17.2]} 11... Rc8 {[%clk 0:02:24.2]} 12. h5 {[%clk 0:01:52.3]} 12... Nf5
{[%clk 0:02:11.7]} 13. h6 {[%clk 0:01:48.7]} 13... g6 {[%clk 0:02:11.2]} 14. Qf4
{[%clk 0:01:38.1]} 14... cxd4 {[%clk 0:02:02.9]} 15. Bd2 {[%clk 0:01:35]} 15...
Rxc2 {[%clk 0:01:30.9]} 16. b4 {[%clk 0:01:15.3]} 16... Nc7 {[%clk 0:01:03.5]}
17. g4 {[%clk 0:01:00.2]} 17... Ne7 {[%clk 0:01:03.3]} 18. Rc1 {[%clk
0:00:16.4]} 18... d3 {[%clk 0:00:55.4]} 19. Rxc2 {[%clk 0:00:07.2]} 19... dxc2
{[%clk 0:00:56.3]} 20. Nd4 {[%clk 0:00:07.8]} 20... Qd7 {[%clk 0:00:43.9]} 21.
Nxc2 {[%clk 0:00:07.4]} 21... Rc8 {[%clk 0:00:44.2]} 22. Nd4 {[%clk 0:00:07.5]}
22... Ne8 {[%clk 0:00:43.4]} 23. Ke2 {[%clk 0:00:07.4]} 23... Nc6 {[%clk
0:00:42.1]} 24. Nf3 {[%clk 0:00:06.8]} 24... a5 {[%clk 0:00:28.8]} 25. b5 {[%clk
0:00:06.4]} 25... Na7 {[%clk 0:00:28.5]} 26. a4 {[%clk 0:00:04.2]} 26... Rc4
{[%clk 0:00:28.7]} 27. Qg5 {[%clk 0:00:02.4]} 27... Rxa4 {[%clk 0:00:28]} 28.
Rc1 {[%clk 0:00:03]} 28... Qxb5+ {[%clk 0:00:27.8]} 29. Ke1 {[%clk 0:00:03]}
29... Re4+ {[%clk 0:00:22.6]} 30. Be3 {[%clk 0:00:03.5]} 30... Rc4 {[%clk
0:00:20]} 31. Qe7 {[%clk 0:00:02]} 31... Qb4+ {[%clk 0:00:13.6]} 32. Qxb4 {[%clk
0:00:01.4]} 32... axb4 {[%clk 0:00:14.5]} 0-1

[Event "*** Titled Tuesday Blitz"]
[Site "Chess.com"]
[Date "2020.05.05"]
[Round "3"]
[White "pandamaster3000"]
[Black "WonderChampion"]
[Result "1-0"]
[WhiteElo "2249"]
[BlackElo "1825"]
[TimeControl "180+1"]
[EndTime "10:29:49 PDT"]
[Termination "pandamaster3000 won by checkmate"]

1. e4 {[%clk 0:03:00.9]} 1... c5 {[%clk 0:02:59.4]} 2. Nf3 {[%clk 0:03:00.6]}
2... g6 {[%clk 0:02:59.4]} 3. d4 {[%clk 0:02:58.3]} 3... cxd4 {[%clk 0:02:59]}
4. Nxd4 {[%clk 0:02:59.2]} 4... Nc6 {[%clk 0:02:59.4]} 5. c4 {[%clk 0:02:58.9]}
5... Nf6 {[%clk 0:02:58.4]} 6. Nc3 {[%clk 0:02:59]} 6... Nxd4 {[%clk 0:02:58.8]}
7. Qxd4 {[%clk 0:02:58.2]} 7... d6 {[%clk 0:02:59.2]} 8. Bg5 {[%clk 0:02:57.5]}
8... Bg7 {[%clk 0:02:59.3]} 9. Qd2 {[%clk 0:02:57.7]} 9... O-O {[%clk
0:02:58.1]} 10. f3 {[%clk 0:02:56.8]} 10... Be6 {[%clk 0:02:54.8]} 11. Rc1
{[%clk 0:02:51.3]} 11... a5 {[%clk 0:02:55]} 12. b3 {[%clk 0:02:44]} 12... Rc8
{[%clk 0:02:42.4]} 13. Be2 {[%clk 0:02:43.8]} 13... Nd7 {[%clk 0:02:26.6]} 14.
O-O {[%clk 0:02:38.3]} 14... Nc5 {[%clk 0:02:26.7]} 15. Kh1 {[%clk 0:02:26.2]}
15... Ra8 {[%clk 0:02:21.7]} 16. f4 {[%clk 0:02:11.6]} 16... a4 {[%clk
0:02:17.3]} 17. b4 {[%clk 0:01:58.5]} 17... Bxc3 {[%clk 0:02:03.9]} 18. Qxc3
{[%clk 0:01:35.8]} 18... Nxe4 {[%clk 0:02:03.6]} 19. Qd4 {[%clk 0:01:32.4]}
19... Nxg5 {[%clk 0:02:01.8]} 20. fxg5 {[%clk 0:01:33.3]} 20... a3 {[%clk
0:01:51.6]} 21. Bf3 {[%clk 0:01:31]} 21... Qd7 {[%clk 0:01:45.5]} 22. Rfd1
{[%clk 0:01:16.3]} 22... Rfc8 {[%clk 0:01:37.2]} 23. Rd2 {[%clk 0:01:07.5]}
23... Rc7 {[%clk 0:01:19.9]} 24. h4 {[%clk 0:01:01.7]} 24... Qa4 {[%clk
0:01:16.2]} 25. h5 {[%clk 0:00:40.2]} 25... Bf5 {[%clk 0:01:00.8]} 26. h6 {[%clk
0:00:36.9]} 26... e5 {[%clk 0:00:47.5]} 27. Qxd6 {[%clk 0:00:36.8]} 27... Rd7
{[%clk 0:00:41.5]} 28. Qf6 {[%clk 0:00:35.6]} 28... Kf8 {[%clk 0:00:36.4]} 29.
Qg7+ {[%clk 0:00:20.9]} 29... Ke7 {[%clk 0:00:33.7]} 30. Qxe5+ {[%clk 0:00:21]}
30... Kf8 {[%clk 0:00:32.4]} 31. Rxd7 {[%clk 0:00:18.7]} 31... Qxd7 {[%clk
0:00:30.5]} 32. Qh8+ {[%clk 0:00:17.5]} 32... Ke7 {[%clk 0:00:30.8]} 33. Qxa8
{[%clk 0:00:17.5]} 33... Qd2 {[%clk 0:00:29.7]} 34. Qxb7+ {[%clk 0:00:17.2]}
34... Kf8 {[%clk 0:00:28.1]} 35. Rg1 {[%clk 0:00:14.3]} 35... Qxg5 {[%clk
0:00:21.9]} 36. Qb8+ {[%clk 0:00:11.7]} 36... Ke7 {[%clk 0:00:21.4]} 37. Qe5+
{[%clk 0:00:11.3]} 37... Kd7 {[%clk 0:00:20.5]} 38. Rd1+ {[%clk 0:00:10.9]}
38... Kc8 {[%clk 0:00:19.9]} 39. Qc5+ {[%clk 0:00:09]} 39... Kb8 {[%clk
0:00:18.9]} 40. Qb6+ {[%clk 0:00:07.5]} 40... Kc8 {[%clk 0:00:16.3]} 41. Bb7+
{[%clk 0:00:04.5]} 41... Kb8 {[%clk 0:00:16]} 42. Bc6+ {[%clk 0:00:02.8]} 42...
Kc8 {[%clk 0:00:15.8]} 43. Qb7# {[%clk 0:00:03.4]} 1-0

[Event "*** Titled Tuesday Blitz"]
[Site "Chess.com"]
[Date "2020.05.05"]
[Round "3"]
[White "Anna_ChessMate"]
[Black "kreonx"]
[Result "1-0"]
[WhiteElo "2512"]
[BlackElo "2214"]
[TimeControl "180+1"]
[EndTime "10:29:50 PDT"]
[Termination "Anna_ChessMate won on time"]

1. d4 {[%clk 0:03:00.5]} 1... f5 {[%clk 0:02:59.4]} 2. c4 {[%clk 0:03:00.1]}
2... Nf6 {[%clk 0:02:59.8]} 3. Nc3 {[%clk 0:03:01]} 3... d6 {[%clk 0:03:00.3]}
4. Bg5 {[%clk 0:02:59.2]} 4... e6 {[%clk 0:02:57.6]} 5. Qc2 {[%clk 0:02:58.8]}
5... Be7 {[%clk 0:02:57.2]} 6. O-O-O {[%clk 0:02:57]} 6... Bd7 {[%clk
0:02:50.1]} 7. Bxf6 {[%clk 0:02:56.8]} 7... Bxf6 {[%clk 0:02:49.8]} 8. e4 {[%clk
0:02:57.7]} 8... fxe4 {[%clk 0:02:47.4]} 9. Nxe4 {[%clk 0:02:58.6]} 9... Nc6
{[%clk 0:02:47]} 10. Nf3 {[%clk 0:02:58.8]} 10... O-O {[%clk 0:02:45.6]} 11. Kb1
{[%clk 0:02:58.5]} 11... Be8 {[%clk 0:02:44.1]} 12. a3 {[%clk 0:02:58]} 12...
Bg6 {[%clk 0:02:43.9]} 13. Bd3 {[%clk 0:02:55.5]} 13... Kh8 {[%clk 0:02:42.6]}
14. Nxf6 {[%clk 0:02:51.9]} 14... Bxd3 {[%clk 0:02:37.6]} 15. Qxd3 {[%clk
0:02:50.6]} 15... Rxf6 {[%clk 0:02:37.6]} 16. Ka1 {[%clk 0:02:51.2]} 16... Qd7
{[%clk 0:02:35.5]} 17. h4 {[%clk 0:02:51.3]} 17... Qf7 {[%clk 0:02:24.9]} 18. h5
{[%clk 0:02:50.8]} 18... h6 {[%clk 0:02:21.1]} 19. Qb3 {[%clk 0:02:46.4]} 19...
b6 {[%clk 0:02:14.6]} 20. Qb5 {[%clk 0:02:45.7]} 20... Ne7 {[%clk 0:02:11.1]}
21. d5 {[%clk 0:02:46.2]} 21... e5 {[%clk 0:02:04.8]} 22. Qb3 {[%clk 0:02:37.8]}
22... a5 {[%clk 0:02:01]} 23. Qc2 {[%clk 0:02:36.4]} 23... Rf8 {[%clk
0:01:57.3]} 24. Rd2 {[%clk 0:02:35.9]} 24... Rxf3 {[%clk 0:01:45.9]} 25. gxf3
{[%clk 0:02:34.6]} 25... Nf5 {[%clk 0:01:45.5]} 26. Rdd1 {[%clk 0:02:14.6]}
26... Nd4 {[%clk 0:01:40.8]} 27. Qg6 {[%clk 0:02:15.5]} 27... Qxg6 {[%clk
0:01:26.1]} 28. hxg6 {[%clk 0:02:16.4]} 28... Rxf3 {[%clk 0:01:26.4]} 29. Rh2
{[%clk 0:02:07.3]} 29... a4 {[%clk 0:01:23]} 30. Kb1 {[%clk 0:02:05.3]} 30...
Kg8 {[%clk 0:01:14.4]} 31. Kc1 {[%clk 0:02:02.9]} 31... Kf8 {[%clk 0:01:07.7]}
32. Re1 {[%clk 0:01:56.4]} 32... Nb3+ {[%clk 0:00:50.4]} 33. Kc2 {[%clk
0:01:53.2]} 33... Rf4 {[%clk 0:00:50.6]} 34. Kd3 {[%clk 0:01:47.9]} 34... Nc5+
{[%clk 0:00:50.7]} 35. Kc3 {[%clk 0:01:47.5]} 35... Ne4+ {[%clk 0:00:47.6]} 36.
Kb4 {[%clk 0:01:47.6]} 36... Nxf2 {[%clk 0:00:44.4]} 37. Kxa4 {[%clk 0:01:40.9]}
37... Rxc4+ {[%clk 0:00:43.8]} 38. Kb5 {[%clk 0:01:35.3]} 38... Rc5+ {[%clk
0:00:40.1]} 39. Ka6 {[%clk 0:01:35.3]} 39... Ng4 {[%clk 0:00:37.1]} 40. Rf1+
{[%clk 0:01:33.5]} 40... Nf6 {[%clk 0:00:36.3]} 41. Rd2 {[%clk 0:01:30.2]} 41...
Ke7 {[%clk 0:00:35.3]} 42. b4 {[%clk 0:01:26.4]} 42... Rc3 {[%clk 0:00:32]} 43.
Kb7 {[%clk 0:01:26]} 43... Kd7 {[%clk 0:00:21.2]} 44. Rg2 {[%clk 0:01:23.1]}
44... Ke7 {[%clk 0:00:19.5]} 45. b5 {[%clk 0:01:21.7]} 45... Rc5 {[%clk
0:00:16.4]} 46. a4 {[%clk 0:01:20]} 46... e4 {[%clk 0:00:15.6]} 47. Ka6 {[%clk
0:01:10]} 47... Rc4 {[%clk 0:00:15]} 48. a5 {[%clk 0:01:09.8]} 48... Ra4 {[%clk
0:00:14.4]} 49. Kb7 {[%clk 0:01:09.2]} 49... Rxa5 {[%clk 0:00:14.9]} 50. Kc6
{[%clk 0:01:01.9]} 50... Ra7 {[%clk 0:00:13.5]} 51. Re2 {[%clk 0:00:50.3]} 51...
Kd8 {[%clk 0:00:07.8]} 52. Rxf6 {[%clk 0:00:49.3]} 1-0